bitfinex-derivatives/quotes_ETHF0:USTF0_20250427
["timestamp","ask_amount","ask_price","bid_price","bid_amount"]
[1745763990628,3.722,1803.9,1803.8,41.90841]
[1745763990826,3.722,1803.9,1803.8,43.52261]
[1745763996531,3.722,1803.9,1803.8,42.4142]
[1745763996830,5.3193,1803.9,1803.8,43.52261]
[1745763999333,6.42765,1803.9,1803.8,40.8]
[1745764003334,6.5245467,1803.9,1803.8,40.8]
[1745764003936,1.10859,1803.5,1803.4,1.0859]
[1745764004142,6.9298,1803.5,1803.1,1.0859]
[1745764004335,1.10875,1803.3,1803.1,2.1947]
[1745764004536,1.6769,1803.2,1803.1,3.9263]
[1745764004737,4.8847,1803.2,1802.9,1.10893]
[1745764004938,1.10887,1803.1,1803.0,40.8]
[1745764005136,6.50777,1803.1,1803.0,40.8]
[1745764005333,1.10897,1802.9,1802.7,7.06706]
[1745764005535,1.10897,1802.9,1802.7,8.79866]
[1745764005735,6.9111,1803.0,1802.7,8.79866]
[1745764005736,8.02005,1803.0,1802.7,8.79866]
[1745764006040,1.6769,1802.9,1802.8,40.8]
[1745764006243,2.78586,1802.9,1802.8,40.8]
[1745764007145,6.50786,1802.9,1802.8,40.8]
[1745764007443,5.3989,1802.9,1802.8,40.8]
[1745764007635,6.50786,1802.9,1802.8,40.8]
[1745764008343,5.3989,1802.9,1802.8,40.8]
[1745764009045,6.50786,1802.9,1802.8,40.8]
[1745764010844,5.3989,1802.9,1802.8,41.90903]
[1745764011044,5.3989,1802.9,1802.8,40.8]
[1745764011748,6.50786,1802.9,1802.8,40.8]
[1745764012055,5.3989,1802.9,1802.8,41.90903]
[1745764017049,3.722,1802.9,1802.8,41.90903]
[1745764017438,4.83096,1802.9,1802.8,41.90903]
[1745764017637,4.83096,1802.9,1802.8,40.8]
[1745764017843,6.58691268,1802.9,1802.8,40.8]
[1745764018046,6.58691577,1802.9,1802.8,40.8]
[1745764019559,5.47794879,1802.9,1802.8,40.8]
[1745764019751,5.381,1802.9,1802.8,41.90903]
[1745764020551,3.722,1802.9,1802.8,41.90903]
[1745764020753,3.722,1802.9,1802.8,43.00643]
[1745764021154,3.722,1802.9,1802.8,44.71483]
[1745764022150,4.31658,1803.2,1803.1,1.10884]
[1745764022453,6.75016,1803.3,1803.1,1.10884]
[1745764022653,6.75016,1803.3,1802.9,1.6139]
[1745764022654,5.6414,1803.3,1803.2,1.10878]
[1745764022854,6.75012,1803.3,1803.2,1.10878]
[1745764023055,6.75012,1803.3,1803.1,1.10878]
[1745764023251,10.47212,1803.3,1803.2,1.6139]
[1745764024150,1.1088,1803.2,1803.0,1.10886]
[1745764024355,2.8242,1803.2,1803.0,1.10885]
[1745764025049,6.5462,1803.2,1803.0,1.10885]
[1745764026157,6.5462,1803.2,1803.1,2.84094]
[1745764026454,5.4374,1803.2,1803.1,2.84094]
[1745764026657,3.722,1803.2,1803.1,2.84094]
[1745764028660,4.83078,1803.2,1803.1,1.7321]
[1745764028855,5.4552,1803.2,1802.9,1.10894]
[1745764029058,2.84209,1803.1,1802.9,2.78954]
[1745764029556,1.7332,1803.0,1802.9,2.78954]
[1745764030263,5.4552,1803.0,1802.9,2.78954]
[1745764033663,3.722,1803.0,1802.9,2.78954]
[1745764038361,3.9302539,1803.3,1803.2,1.10878]
[1745764038362,0.0042539,1803.3,1803.2,1.10878]
[1745764039167,3.7262539,1803.3,1803.2,2.24658]
[1745764039365,3.7262539,1803.3,1803.2,3.92028]
[1745764039567,4.8349939,1803.3,1803.0,3.2078]
[1745764039865,1.7264,1803.2,1803.1,2.78249]
[1745764040066,6.55718,1803.2,1803.1,2.78249]
[1745764040366,5.4484,1803.2,1803.0,1.10887]
[1745764040560,2.8785,1803.1,1803.0,1.10887]
[1745764041062,7.70934,1803.1,1803.0,1.10887]
[1745764041367,6.6005,1803.1,1803.0,1.10887]
[1745764042076,6.6005,1803.1,1802.9,2.67912]
[1745764042272,2.7198,1803.0,1802.9,2.67912]
[1745764042667,2.7198,1803.0,1802.9,1.10892]
[1745764043172,6.4418,1803.0,1802.9,1.10892]
[1745764043572,7.5507,1803.0,1802.9,1.10892]
[1745764043764,7.5507,1803.0,1802.8,44.0078]
[1745764043965,1.612,1802.9,1802.8,45.11683]
[1745764045066,5.334,1802.9,1802.8,45.11683]
[1745764049476,6.44296,1802.9,1802.8,44.0078]
[1745764049683,6.44296,1802.9,1802.8,40.8]
[1745764053483,1.10909,1802.7,1802.6,1.10911]
[1745764053779,1.10921,1802.5,1802.4,3.2078]
[1745764054086,1.10921,1802.5,1802.2,5.958]
[1745764054087,3.722,1802.5,1802.2,6.1996]
[1745764054276,5.92829,1802.4,1802.3,1.7185]
[1745764054584,4.1408,1802.4,1802.3,43.62783]
[1745764054788,5.25007,1802.4,1802.3,43.62783]
[1745764055286,8.97207,1802.4,1802.3,42.5185]
[1745764055780,8.97207,1802.4,1802.3,43.62783]
[1745764055981,8.97207,1802.4,1802.3,40.8]
[1745764058885,12.27684976,1802.4,1802.3,40.8]
[1745764059886,16.20084976,1802.4,1802.3,40.8]
[1745764060589,1.10946,1802.1,1802.0,4.7984]
[1745764060794,1.10946,1802.1,1802.0,1.5906]
[1745764061092,4.83146,1802.1,1802.0,1.5906]
[1745764061486,4.8315,1802.1,1801.9,2.33648]
[1745764061686,2.931,1802.0,1801.9,4.07228]
[1745764062089,2.931,1802.0,1801.9,44.87228]
[1745764062290,6.653,1802.0,1801.9,44.87228]
[1745764062496,7.76252,1802.0,1801.9,44.87228]
[1745764062693,6.653,1802.0,1801.9,44.87228]
[1745764062889,7.76252,1802.0,1801.9,44.87228]
[1745764063089,6.653,1802.0,1801.9,44.87228]
[1745764063401,3.722,1802.0,1801.9,44.87228]
[1745764063701,3.722,1802.0,1801.9,46.05858]
[1745764064087,5.1793,1802.4,1801.9,47.7229]
[1745764064289,3.924,1802.4,1802.0,4.8923]
[1745764064598,5.03327,1802.4,1802.2,1.10935]
[1745764064795,6.74187,1802.4,1802.3,1.6845]
[1745764064993,1.10936,1802.3,1802.1,1.10943]
[1745764065193,2.81796,1802.3,1802.1,2.79393]
[1745764065892,2.81796,1802.3,1802.2,2.79389]
[1745764066096,6.53996,1802.3,1802.2,2.79389]
[1745764066298,6.53996,1802.3,1802.2,1.6845]
[1745764066496,1.10941,1802.2,1802.0,4.31728]
[1745764066691,1.3011,1802.1,1802.0,6.00178]
[1745764067195,5.0231,1802.1,1802.0,6.00178]
[1745764068902,3.722,1802.1,1802.0,6.00178]
[1745764070106,9.24071,1802.4,1802.2,1.10938]
[1745764070302,9.24071,1802.4,1802.3,1.6658]
[1745764070602,7.03467923,1802.4,1802.3,2.77513]
[1745764070803,5.32717923,1802.4,1802.3,2.77513]
[1745764071004,6.33947,1802.4,1802.3,1.6658]
[1745764071306,10.06147,1802.4,1802.3,1.6658]
[1745764072318,10.68117774,1802.4,1802.1,1.10943]
[1745764072517,1.632,1802.3,1802.1,2.75433]
[1745764072815,2.74137,1802.3,1802.1,2.75433]
[1745764073118,6.46337,1802.3,1802.1,2.75433]
[1745764073617,6.46337,1802.3,1802.1,1.6449]
[1745764073819,6.46337,1802.3,1802.1,2.75433]
[1745764074007,6.46337,1802.3,1802.2,1.7156]
[1745764074205,5.354,1802.3,1802.0,4.31728]
[1745764074411,3.94472,1802.2,1802.0,6.03288]
[1745764074715,1.6123,1802.1,1802.0,6.03288]
[1745764075217,5.3343,1802.1,1802.0,6.03288]
[1745764075718,5.3343,1802.1,1802.0,2.82508]
[1745764078313,3.722,1802.1,1802.0,2.82508]
[1745764079317,4.83146,1802.1,1801.9,46.34425]
[1745764079611,7.72976,1802.1,1801.9,46.34425]
[1745764080015,1.10952,1802.0,1801.9,45.2347]
[1745764080215,1.10952,1802.0,1801.9,44.74708]
[1745764080216,3.722,1802.0,1801.9,44.74708]
[1745764080414,4.83152,1802.0,1801.9,43.6375]
[1745764081313,5.3371,1802.0,1801.9,44.74708]
[1745764081513,3.722,1802.0,1801.9,44.74708]
[1745764083822,4.83152,1802.0,1801.9,44.74708]
[1745764084022,4.83152,1802.0,1801.9,42.4106]
[1745764084225,6.56462,1802.0,1801.9,42.4106]
[1745764084618,6.56462,1802.0,1801.9,40.8]
[1745764085116,5.4551,1802.0,1801.9,41.90958]
[1745764085326,6.56462,1802.0,1801.9,41.90958]
[1745764085923,5.4551,1802.0,1801.9,41.90958]
[1745764086124,3.722,1802.0,1801.9,41.90958]
[1745764087120,2.8416,1802.2,1802.1,1.10946]
[1745764087328,3.95099,1802.2,1802.0,4.0453]
[1745764088226,7.673,1802.2,1802.0,2.9358]
[1745764088425,7.673,1802.2,1802.1,1.6801]
[1745764089427,1.10946,1802.1,1802.0,2.36521]
[1745764089628,2.75646,1802.1,1802.0,4.07562]
[1745764090127,5.369,1802.1,1802.0,4.07562]
[1745764091124,6.47846,1802.1,1802.0,4.07562]
[1745764091634,6.47846,1802.1,1801.9,45.11734]
[1745764091831,6.47846,1802.1,1802.0,1.6602]
[1745764092129,1.10952,1802.0,1801.9,45.11738]
[1745764092328,4.01352,1802.0,1801.9,45.11738]
[1745764092532,4.01352,1802.0,1801.9,41.90958]
[1745764092720,2.904,1802.0,1801.9,41.90958]
[1745764093132,6.626,1802.0,1801.9,41.90958]
[1745764093531,7.73552,1802.0,1801.9,41.90958]
[1745764094723,6.626,1802.0,1801.9,41.90958]
[1745764094924,6.626,1802.0,1801.9,43.54458]
[1745764097133,7.73552,1802.0,1801.9,43.54458]
[1745764097434,6.626,1802.0,1801.9,43.54458]
[1745764097635,7.73552,1802.0,1801.9,43.54458]
[1745764098232,6.626,1802.0,1801.9,43.54458]
[1745764098735,7.73552,1802.0,1801.9,43.54458]
[1745764099931,6.626,1802.0,1801.9,43.54458]
[1745764101730,6.626,1802.0,1801.9,41.90958]
[1745764101929,6.626,1802.0,1801.9,43.61758]
[1745764102736,7.73552,1802.0,1801.9,43.61758]
[1745764102939,6.626,1802.0,1801.9,43.61758]
[1745764104136,7.73552,1802.0,1801.9,43.61758]
[1745764105135,6.626,1802.0,1801.9,43.61758]
[1745764105335,7.73552,1802.0,1801.9,40.8]
[1745764107036,7.73552,1802.0,1801.9,42.5083]
[1745764107537,1.10966,1801.8,1801.6,1.10972]
[1745764107739,1.1097,1801.7,1801.6,1.5679]
[1745764108040,1.1097,1801.7,1801.6,42.3679]
[1745764109137,4.8317,1801.7,1801.6,42.3679]
[1745764109337,7.7834,1801.7,1801.6,42.3679]
[1745764111630,6.6737,1801.7,1801.6,43.47766]
[1745764111833,7.7834,1801.7,1801.6,43.47766]
[1745764112627,7.7834,1801.7,1801.6,42.3679]
[1745764114243,6.6737,1801.7,1801.6,43.47766]
[1745764114442,3.722,1801.7,1801.6,43.47766]
[1745764115237,3.918,1802.5,1801.8,2.77407]
[1745764115441,2.39117158,1802.4,1802.2,1.10935]
[1745764115630,2.29419,1802.4,1802.2,1.10935]
[1745764115834,2.29419,1802.4,1802.0,3.2078]
[1745764115835,2.29419,1802.4,1802.3,42.4862]
[1745764116035,4.0260688,1802.4,1802.3,1.6862]
[1745764116235,7.7480688,1802.4,1802.3,1.6862]
[1745764116435,7.65109,1802.4,1802.3,1.6862]
[1745764116636,7.74806528,1802.4,1802.3,42.4862]
[1745764117035,10.85889,1802.4,1802.3,40.8]
[1745764117243,1.10946,1802.1,1802.0,1.6479]
[1745764117737,1.10946,1802.1,1802.0,42.4479]
[1745764118144,4.83146,1802.1,1802.0,42.4479]
[1745764118335,6.09086,1802.1,1802.0,42.4479]
[1745764118730,7.72576,1802.1,1802.0,42.4479]
[1745764131458,3.722,1802.1,1802.0,43.55742]
[1745764131653,3.722,1802.1,1802.0,44.77102]
[1745764133155,5.02737,1802.3,1802.1,1.10943]
[1745764133459,5.02737,1802.3,1802.2,1.6858]
[1745764133650,1.10946,1802.1,1802.0,1.2136]
[1745764133851,1.10946,1802.1,1802.0,40.8]
[1745764134153,4.83146,1802.1,1802.0,40.8]
[1745764134856,4.83146,1802.1,1802.0,42.4551]
[1745764135356,7.56996,1802.1,1802.0,42.4551]
[1745764136351,7.56996,1802.1,1802.0,40.8]
[1745764136558,1.10964,1801.8,1801.7,1.6551]
[1745764137157,4.83164,1801.8,1801.7,42.4551]
[1745764137363,4.83164,1801.8,1801.7,43.5648]
[1745764137957,4.83164,1801.8,1801.7,42.4551]
[1745764138159,6.01374,1801.8,1801.7,42.4551]
[1745764139952,7.20074,1801.8,1801.7,42.4551]
[1745764141064,3.722,1801.8,1801.7,43.5648]
[1745764141553,3.722,1801.8,1801.7,48.5648]
[1745764141954,3.05595458,1801.8,1801.7,48.5648]
[1745764142161,1.10946,1802.1,1801.9,1.10957]
[1745764142364,3.89484,1802.2,1801.9,1.10957]
[1745764142562,3.89484,1802.2,1802.0,2.9788]
[1745764142761,3.89484,1802.2,1802.1,42.522]
[1745764143163,7.61684,1802.2,1802.1,42.522]
[1745764144166,7.7138291,1802.2,1802.1,40.8]
[1745764147161,7.71382959,1802.2,1802.1,40.8]
[1745764148660,1.1095,1802.1,1801.9,2.72565]
[1745764148865,2.7593,1802.1,1801.9,2.72565]
[1745764149168,1.2156,1802.0,1801.9,2.72565]
[1745764149365,2.8654,1802.0,1801.9,2.72565]
[1745764149667,2.8654,1802.0,1801.9,43.52565]
[1745764149967,2.8654,1802.0,1801.9,42.4161]
[1745764150167,6.5874,1802.0,1801.9,42.4161]
[1745764150964,7.69692,1802.0,1801.9,42.4161]
[1745764151959,7.69692,1802.0,1801.9,40.8]
[1745764152158,7.69692,1802.0,1801.7,1.2631]
[1745764152159,1.10961,1801.9,1801.7,2.8458]
[1745764152457,1.10964,1801.8,1801.7,2.8458]
[1745764152654,1.10964,1801.8,1801.7,43.6458]
[1745764153163,4.83164,1801.8,1801.7,43.6458]
[1745764154366,4.83164,1801.8,1801.7,1.5827]
[1745764154566,1.10988,1801.5,1801.4,3.027]
[1745764154760,1.11001,1801.2,1801.1,5.958]
[1745764154960,10.0083,1801.4,1800.9,2.5009]
[1745764155265,1.11007,1801.1,1800.9,3.61108]
[1745764155465,1.11007,1801.1,1801.0,40.8]
[1745764155967,1.11007,1801.1,1801.0,42.525]
[1745764156166,4.83207,1801.1,1801.0,42.525]
[1745764156769,4.83207,1801.1,1801.0,40.8]
[1745764156969,7.69467,1801.1,1801.0,40.8]
[1745764157168,1.1102,1800.9,1800.8,2.47200706]
[1745764157468,4.41505085,1800.9,1800.8,7.06e-06]
[1745764157662,9.41505085,1800.9,1800.8,7.06e-06]
[1745764157861,9.41508643,1800.9,1800.8,7.06e-06]
[1745764158063,1.11044,1800.5,1800.4,1.725]
[1745764158670,2.74184,1800.5,1800.4,1.725]
[1745764159168,5.3534,1800.5,1800.1,3.2078]
[1745764159470,1.1105,1800.4,1800.2,1.7364]
[1745764160065,1.11057,1800.3,1800.2,1.7364]
[1745764160266,4.83254,1800.4,1800.2,1.7364]
[1745764160567,3.722,1800.4,1800.2,2.84701]
[1745764160767,4.83251,1800.4,1800.2,1.7364]
[1745764160970,1.11057,1800.3,1800.2,1.7364]
[1745764162070,4.83257,1800.3,1800.2,1.7364]
[1745764162374,3.722,1800.3,1800.2,1.7364]
[1745764163474,4.83257,1800.3,1800.2,1.7364]
[1745764163874,3.722,1800.3,1800.2,2.84703]
[1745764164075,3.722,1800.3,1800.2,1.7364]
[1745764164674,3.722,1800.3,1800.2,2.84703]
[1745764165173,1.11045,1800.5,1800.3,1.11051]
[1745764165374,5.02443,1800.6,1800.4,1.5697]
[1745764165974,1.11044,1800.5,1800.4,2.7528]
[1745764166976,1.11056,1800.4,1800.2,1.11063]
[1745764167178,1.11057,1800.3,1800.2,1.5697]
[1745764167479,1.11055,1800.4,1800.2,2.68033]
[1745764167871,5.4055,1800.5,1800.2,2.68033]
[1745764168070,6.51596,1800.5,1800.2,2.68033]
[1745764168582,1.11051,1800.4,1800.2,1.5697]
[1745764168769,1.7254,1800.4,1800.2,2.68032]
[1745764168974,1.7254,1800.4,1800.3,1.6587]
[1745764169283,3.722,1800.4,1800.3,2.76927]
[1745764169474,3.722,1800.4,1800.3,10.97707]
[1745764170176,2.9844,1800.7,1800.6,1.11038]
[1745764170373,4.19179551,1800.7,1800.5,1.1104]
[1745764170574,4.09472,1800.7,1800.6,1.6587]
[1745764171073,7.81672,1800.7,1800.6,1.6587]
[1745764171274,7.91379406,1800.7,1800.6,1.6587]
[1745764171573,7.91379406,1800.7,1800.5,1.1104]
[1745764171574,7.91383406,1800.7,1800.5,1.11044]
[1745764171776,7.91383406,1800.7,1800.5,2.80564]
[1745764171777,7.81676,1800.7,1800.5,2.80564]
[1745764172172,6.7064,1800.7,1800.6,1.11038]
[1745764172372,7.91379697,1800.7,1800.6,1.11038]
[1745764172685,6.80347697,1800.7,1800.6,1.11038]
[1745764173282,7.91379652,1800.7,1800.5,2.8056]
[1745764173491,7.81672,1800.7,1800.5,2.8056]
[1745764173988,6.7064,1800.7,1800.6,1.11038]
[1745764174186,6.80347573,1800.7,1800.6,1.11038]
[1745764174386,6.80347573,1800.7,1800.5,1.6952]
[1745764174588,6.7064,1800.7,1800.6,1.11038]
[1745764174786,6.80347461,1800.7,1800.6,1.11038]
[1745764174988,1.1104,1800.6,1800.4,2.36767]
[1745764175187,6.6047,1800.6,1800.3,2.68316]
[1745764175690,1.5823,1800.5,1800.3,2.68316]
[1745764176086,5.3043,1800.5,1800.3,2.68316]
[1745764176390,8.5121,1800.5,1800.3,1.5726]
[1745764176587,5.2357,1800.4,1800.3,1.5726]
[1745764176782,5.2357,1800.4,1800.1,4.31845]
[1745764176979,2.80947,1800.3,1800.2,1.6182]
[1745764177185,1.11066,1800.2,1800.0,3.50193]
[1745764177385,2.80956,1800.2,1800.0,3.91463]
[1745764177686,3.722,1800.3,1800.0,2.8039]
[1745764177888,3.722,1800.3,1800.2,1.11063]
[1745764178190,3.65341,1800.4,1800.2,1.11063]
[1745764178384,3.65341,1800.4,1800.3,1.6182]
[1745764179093,7.37541,1800.4,1800.3,1.6182]
[1745764179490,9.07431,1800.4,1800.3,1.6182]
[1745764179690,6.09601,1800.4,1800.3,1.6182]
[1745764182798,3.722,1800.4,1800.3,2.72877]
[1745764183200,2.78639,1800.5,1800.3,2.72877]
[1745764183388,2.78639,1800.5,1800.4,2.989]
[1745764183592,7.57632,1800.6,1800.5,1.11044]
[1745764183788,6.38999802,1800.6,1800.5,2.84194]
[1745764183994,5.1825,1800.6,1800.5,2.84194]
[1745764184194,8.9045,1800.6,1800.5,2.84194]
[1745764184499,7.634,1800.6,1800.5,2.84194]
[1745764184893,3.722,1800.6,1800.5,2.84194]
[1745764185199,6.0426,1800.7,1800.6,1.11038]
[1745764185395,6.0426,1800.7,1800.6,2.84188]
[1745764185593,7.15292,1800.7,1800.6,1.7315]
[1745764185902,7.15292,1800.7,1800.4,1.2575]
[1745764185903,1.11043,1800.6,1800.4,2.36797]
[1745764186200,2.72443,1800.6,1800.4,2.36797]
[1745764186499,2.72443,1800.6,1800.5,1.11044]
[1745764186699,1.614,1800.6,1800.5,1.11044]
[1745764187200,5.336,1800.6,1800.5,1.11044]
[1745764187699,6.44638,1800.6,1800.4,1.11046]
[1745764187902,1.614,1800.5,1800.4,1.11046]
[1745764189097,2.72444,1800.5,1800.3,2.84203]
[1745764189303,1.3106,1800.4,1800.3,2.84203]
[1745764189506,4.1255,1800.4,1800.3,1.11053]
[1745764190302,7.8475,1800.4,1800.3,1.11053]
[1745764190902,7.8475,1800.4,1800.3,2.75793]
[1745764191205,8.958,1800.4,1800.2,2.38587]
[1745764191395,8.958,1800.4,1800.2,4.03327]
[1745764191596,1.6009,1800.3,1800.2,4.03327]
[1745764192404,1.6009,1800.3,1800.2,1.11057]
[1745764192906,2.71147,1800.3,1800.2,1.11057]
[1745764194207,6.43347,1800.3,1800.2,1.11057]
[1745764195408,5.3229,1800.3,1800.2,1.11057]
[1745764195608,6.43347,1800.3,1800.2,1.11057]
[1745764196210,5.3229,1800.3,1800.2,1.11057]
[1745764196407,3.722,1800.3,1800.2,4.03907]
[1745764196607,3.722,1800.3,1800.2,5.27797]
[1745764197209,1.3106,1800.4,1800.3,1.11057]
[1745764197410,2.9862,1800.4,1800.3,1.11057]
[1745764197710,4.0967,1800.4,1800.3,1.696]
[1745764198098,2.9862,1800.4,1800.3,2.80657]
[1745764199610,4.0967,1800.4,1800.2,2.34307]
[1745764199909,1.5936,1800.3,1800.2,2.34307]
[1745764200412,1.3106,1800.4,1800.3,1.11057]
[1745764200610,1.3106,1800.4,1800.3,2.74377]
[1745764201912,2.4211,1800.4,1800.3,2.74377]
[1745764202211,3.9945,1800.4,1800.3,2.74377]
[1745764202404,2.884,1800.4,1800.3,2.74377]
[1745764202912,4.31814,1800.7,1800.5,1.1104]
[1745764203116,5.89154,1800.7,1800.6,1.7393]
[1745764203615,4.87827821,1800.7,1800.4,1.11047]
[1745764203805,2.68381,1800.6,1800.4,1.11047]
[1745764204005,2.68381,1800.6,1800.5,1.7393]
[1745764204609,1.1105,1800.4,1800.2,2.34308]
[1745764204807,1.1105,1800.4,1800.2,1.2325]
[1745764205212,1.11057,1800.3,1800.2,2.9443]
[1745764205812,2.76667,1800.3,1800.2,2.9443]
[1745764206008,1.11063,1800.2,1800.0,11.25031]
[1745764206315,6.48869,1800.3,1800.1,2.82246]
[1745764206507,6.48869,1800.3,1800.2,1.7118]
[1745764209621,1.11064,1800.2,1800.0,5.6305]
[1745764209818,1.11069,1800.1,1800.0,6.1116]
[1745764210118,2.8484,1800.2,1799.7,44.0078]
[1745764210323,1.11083,1799.9,1799.8,1.11085]
[1745764210516,1.11083,1799.9,1799.8,1.6561]
[1745764210716,1.11081,1799.9,1799.8,2.76697]
[1745764211216,4.83281,1799.9,1799.8,2.76697]
[1745764211411,4.83281,1799.9,1799.8,1.6561]
[1745764211823,6.11721,1799.9,1799.8,1.6561]
[1745764212218,1.11087,1799.8,1799.7,40.8]
[1745764212526,2.78517,1799.8,1799.7,40.8]
[1745764213323,6.50717,1799.8,1799.7,40.8]
[1745764213712,6.50717,1799.8,1799.7,42.5352]
[1745764213913,5.3963,1799.8,1799.7,43.64614]
[1745764214119,3.722,1799.8,1799.7,46.85394]
[1745764214324,7.425,1800.2,1799.8,2.77719]
[1745764214524,3.908,1800.3,1799.9,6.1372]
[1745764214725,3.908,1800.3,1800.2,1.11063]
[1745764215225,7.63,1800.3,1800.2,1.11063]
[1745764215617,7.63,1800.3,1800.2,2.30483]
[1745764215819,3.722,1800.3,1800.2,2.30483]
[1745764217126,5.4326,1800.3,1800.2,1.11063]
[1745764217328,6.6846,1800.3,1800.2,1.11063]
[1745764218526,6.6846,1800.3,1800.2,2.77163]
[1745764219722,3.722,1800.3,1800.2,2.77163]
[1745764221824,3.722,1800.3,1800.2,5.97943]
[1745764222022,3.2078,1800.5,1800.4,1.1105]
[1745764222727,3.2078,1800.5,1800.4,3.5847]
[1745764223131,6.9298,1800.5,1800.4,3.5847]
[1745764224130,6.9298,1800.5,1800.4,2.3538]
[1745764224328,8.5727,1800.5,1800.4,2.3538]
[1745764225322,8.5727,1800.5,1800.2,4.4383]
[1745764225323,9.68314,1800.5,1800.2,3.2078]
[1745764225524,2.8724,1800.4,1800.3,1.11053]
[1745764226233,3.722,1800.4,1800.3,1.11053]
[1745764226432,3.722,1800.4,1800.3,2.71073]
[1745764227326,1.2569,1800.8,1800.7,1.11032]
[1745764227928,1.2569,1800.8,1800.7,2.71052]
[1745764228132,4.9789,1800.8,1800.7,2.71052]
[1745764228826,4.9789,1800.8,1800.7,43.51052]
[1745764229024,6.7164,1800.8,1800.7,43.51052]
[1745764229635,5.4595,1800.8,1800.7,43.51052]
[1745764230633,3.722,1800.8,1800.7,43.51052]
[1745764230822,3.722,1800.8,1800.7,44.72392]
[1745764233633,3.722,1800.8,1800.7,43.51052]
[1745764234238,5.0078,1800.8,1800.7,43.51052]
[1745764235332,6.6386,1800.8,1800.7,43.51052]
[1745764235830,5.0078,1800.8,1800.7,43.51052]
[1745764241144,5.0078,1800.8,1800.7,41.91032]
[1745764244642,5.0078,1800.8,1800.7,43.53472]
[1745764245843,5.0078,1800.8,1800.7,41.91032]
[1745764248149,5.0078,1800.8,1800.7,43.64262]
[1745764248538,3.722,1800.8,1800.7,43.64262]
[1745764248745,3.722,1800.8,1800.7,48.64262]
[1745764249551,3.722,1800.8,1800.7,52.54562]
[1745764249738,0.50096,1800.8,1800.7,52.54562]
[1745764249940,4.4424,1801.2,1800.7,52.54562]
[1745764249941,4.4424,1801.2,1801.1,1.11007]
[1745764250142,8.1644,1801.2,1801.1,1.11007]
[1745764250341,9.8064,1801.2,1801.1,1.11007]
[1745764250649,9.8064,1801.2,1801.1,41.91007]
[1745764252637,3.722,1801.2,1801.1,41.91007]
[1745764252838,2.6085,1801.2,1801.1,50.11787]
[1745764253052,1.38896,1801.2,1801.1,50.11787]
[1745764253351,1.38896,1801.2,1801.1,51.80667]
[1745764253541,1.6241,1801.6,1801.5,1.10983]
[1745764254252,5.3461,1801.6,1801.5,1.10983]
[1745764260058,5.3461,1801.6,1801.4,1.10987]
[1745764260365,2.82997,1801.5,1801.3,1.10991]
[1745764260555,3.722,1801.6,1801.1,44.0078]
[1745764260556,2.83001,1801.4,1801.2,1.10996]
[1745764260756,4.12841,1801.4,1801.2,1.10996]
[1745764260958,3.0135,1801.3,1801.2,1.10996]
[1745764261566,1.11001,1801.2,1801.1,40.8]
[1745764261753,2.83011,1801.2,1801.1,40.8]
[1745764262157,5.4421,1801.2,1801.1,41.91007]
[1745764264465,6.55211,1801.2,1801.1,41.91007]
[1745764264664,5.4421,1801.2,1801.1,41.91007]
[1745764268568,6.55211,1801.2,1801.1,40.8]
[1745764270072,1.11019,1801.0,1800.8,4.31803]
[1745764270274,2.5406,1800.9,1800.8,4.31803]
[1745764270474,4.256,1800.9,1800.8,45.11803]
[1745764270668,5.3662,1800.9,1800.8,44.0078]
[1745764270866,4.256,1800.9,1800.8,45.11806]
[1745764271372,7.978,1800.9,1800.8,45.11806]
[1745764271776,7.978,1800.9,1800.8,41.91026]
[1745764272167,3.722,1800.9,1800.8,41.91026]
[1745764272471,3.722,1800.9,1800.8,43.20176]
[1745764274065,3.722,1800.9,1800.8,46.40956]
[1745764274469,1.3169,1801.3,1801.2,1.11001]
[1745764274870,1.7305,1801.4,1801.3,1.10995]
[1745764276065,5.4525,1801.4,1801.3,1.10995]
[1745764276270,6.56239,1801.4,1801.2,2.7945]
[1745764277478,1.10995,1801.3,1801.2,1.6845]
[1745764277682,2.71145,1801.3,1801.2,1.6845]
[1745764278069,6.43345,1801.3,1801.2,1.6845]
[1745764278274,6.43345,1801.3,1801.0,4.3179]
[1745764278275,6.43345,1801.3,1801.0,1.1101]
[1745764278477,4.0248,1801.2,1801.0,2.836]
[1745764278680,1.6015,1801.1,1801.0,2.836]
[1745764278880,1.6015,1801.1,1800.9,1.11015]
[1745764279070,6.43358,1801.1,1800.9,1.11015]
[1745764279275,6.43358,1801.1,1801.0,1.11013]
[1745764279470,5.3235,1801.1,1801.0,1.11013]
[1745764279882,6.43357,1801.1,1801.0,1.11013]
[1745764280074,5.3235,1801.1,1801.0,1.11013]
[1745764281083,6.43357,1801.1,1800.9,2.83604]
[1745764281281,1.7314,1801.0,1800.9,2.83604]
[1745764281885,2.84153,1801.0,1800.9,1.7259]
[1745764282081,2.84153,1801.0,1800.8,45.11802]
[1745764282385,2.9439,1800.9,1800.8,45.11802]
[1745764282985,2.9439,1800.9,1800.8,41.91022]
[1745764283180,6.6659,1800.9,1800.8,41.91022]
[1745764283377,6.6659,1800.9,1800.8,43.51452]
[1745764283786,7.7761,1800.9,1800.8,42.4043]